fUSD/lending_fUSD_20251117
["ID","MTS","AMOUNT","RATE_DAILY","PERIOD"]
[394196477,1763371832086,-500.0,0.00017999,2]
[394196478,1763371832095,-500.0,0.00017999,2]
[394196479,1763371832105,-381.73759267,0.00017999,2]
[394196480,1763371832114,-109.11532324,0.00017999,2]
[394196481,1763371832127,-382.91165843,0.00017999,2]
[394196482,1763371832136,-500.0,0.00017999,2]
[394196483,1763371832145,-500.0,0.00017999,2]
[394196484,1763371832156,-155.93109147,0.00017999,2]
[394196485,1763371832167,-344.06890853,0.00017999,2]
[394196486,1763371832177,-500.0,0.00017999,2]
[394196487,1763371832187,-500.0,0.00017999,2]
[394196488,1763371832198,-500.0,0.00017999,2]
[394196489,1763371832208,-500.0,0.00017999,2]
[394196490,1763371832217,-500.0,0.00017999,2]
[394196491,1763371832227,-500.0,0.00017999,2]
[394196492,1763371832236,-500.0,0.00017999,2]
[394196493,1763371832246,-500.0,0.00017999,2]
[394196494,1763371832255,-154.25093512,0.00017999,2]
[394196495,1763371832267,-345.74906488,0.00017999,2]
[394196496,1763371832276,-500.0,0.00017999,2]
[394196497,1763371832286,-500.0,0.00017999,2]
[394196498,1763371832296,-542.84079173,0.00017999,2]
[394196499,1763371832305,-500.0,0.00017999,2]
[394196500,1763371832315,-500.0,0.00017999,2]
[394196501,1763371832325,-159.46920792,0.00018,2]
[394196503,1763371832366,-500.0,0.00018,2]
[394196504,1763371832377,-1051.0,0.00018,2]
[394196505,1763371832415,-42304.41714736,0.00018,2]
[394196506,1763371832444,-871.98025582,0.00018,2]
[394196507,1763371832459,-653.35672614,0.00018,2]
[394196508,1763371832471,-801.98263016,0.00018,2]
[394196511,1763371837899,-1755334.19099119,0.00018,2]
[394196512,1763371837912,-17972.90642691,0.00018,2]
[394196513,1763371838013,-819.88227283,0.00018,2]
[394196514,1763371838025,-4999.91255724,0.00018,2]
[394196515,1763371838036,-5254.56915896,0.00018,2]
[394196516,1763371838048,-3055.164867,0.00018,2]
[394196517,1763371838059,-4457.9851755,0.00018,2]
[394196518,1763371838070,-5353.2532445,0.00018,2]
[394196519,1763371838081,-5574.83186308,0.00018,2]
[394196520,1763371838093,-2217.072792,0.00018,2]
[394196521,1763371838158,-265.83613671,0.00018,2]
[394196709,1763371840010,-447.1571751,0.00018,2]
[394196715,1763371840119,-303.94,0.00018,2]
[394196975,1763371846691,-42546140.10522108,0.00018,2]
[394196976,1763371846700,-3616.0987481,0.00018012,2]
[394196977,1763371846709,-300.0,0.00018229,2]
[394196978,1763371846719,-103203.5400771,0.0001823,2]
[394196979,1763371846728,-330.81406872,0.00018279,2]
[394196980,1763371846737,-2970.22694236,0.000184,2]
[394196981,1763371846747,-300.0,0.000185,2]
[394196982,1763371846756,-7433.0,0.00018714,2]
[394196983,1763371846765,-284.32,0.0001881,2]
[394196984,1763371846775,-284.32,0.0001892,2]
[394196985,1763371846784,-1968.6991,0.00018922,2]
[394196986,1763371846794,-277.35679052,0.00018989,2]
[394196987,1763371846803,-172.07274561,0.00018999,2]
[394196988,1763371846813,-102183.18514988,0.00019,2]
[394196989,1763371846822,-299.28160446,0.00019,2]
[394196990,1763371846832,-300.0,0.00019,2]
[394196991,1763371846841,-217.38343631,0.00019,2]
[394196992,1763371846851,-217.38343631,0.00019,2]
[394196993,1763371846861,-217.38343631,0.00019,2]
[394196994,1763371846871,-5127.65546053,0.00019,2]
[394196995,1763371846882,-39214.78,0.00019023,2]
[394196996,1763371846892,-157.16732242,0.00019037,2]
[394196997,1763371846902,-1000.0,0.00019133,2]
[394196998,1763371846912,-284.32001,0.0001916,2]
[394196999,1763371846922,-211.15,0.00019262,2]
[394197000,1763371846931,-1852.42,0.00019276,2]
[394197001,1763371846941,-200.0,0.00019287,2]
[394197002,1763371846950,-200.0,0.00019288,2]
[394197003,1763371846960,-200.0,0.00019288,2]
[394197004,1763371846973,-200.0,0.00019296,2]
[394197005,1763371846982,-9999.99,0.00019339,2]
[394197006,1763371846993,-4188.53,0.00019339,2]
[394197007,1763371847005,-284.32,0.0001942,2]
[394197008,1763371847015,-320.82,0.00019491,2]
[394197009,1763371847025,-211.15,0.00019536,2]
[394197010,1763371847035,-284.32,0.0001966,2]
[394197011,1763371847045,-1158.25423594,0.00019698,2]
[394197012,1763371847054,-1680.0,0.00019734,2]
[394197013,1763371847064,-4350.67888005,0.00019799,4]
[394197014,1763371847074,-500.0,0.00019799,10]
[394197015,1763371847083,-500.0,0.00019799,10]
[394197016,1763371847092,-500.0,0.00019799,10]
[394197017,1763371847101,-500.0,0.00019799,10]
[394197018,1763371847111,-500.0,0.00019799,10]
[394197019,1763371847121,-300.0,0.000198,2]
[394197020,1763371847131,-211.15,0.0001981,2]
[394197021,1763371847139,-166.66,0.00019844,2]
[394197022,1763371847148,-284.32001,0.0001991,2]
[394197023,1763371847159,-9804.86878329,0.0002,2]
[394197024,1763371847168,-25399.23108403,0.0002,2]
[394197025,1763371847178,-3950.0,0.0002,2]
[394197026,1763371847187,-7235.23534557,0.0002,2]
[394197027,1763371847197,-10178.09964429,0.0002,2]
[394197028,1763371847206,-8741.39533349,0.0002,2]
[394197029,1763371847216,-9020.22116776,0.0002001,2]
[394197030,1763371847225,-211.16736359,0.00020084,2]
[394197031,1763371847235,-2347.56451957,0.00020138,2]
[394197032,1763371847244,-478.6,0.00020187,2]
[394197033,1763371847253,-320.82,0.00020195,2]
[394197034,1763371847263,-1084.74166111,0.00020265,2]
[394197035,1763371847272,-806.8606927,0.00020296,2]
[394197036,1763371847282,-5520.1569753,0.00020305,2]
[394197037,1763371847292,-1142.4437445,0.00020321,2]
[394197038,1763371847301,-287.61899177,0.00020358,2]
[394197039,1763371847310,-169.32,0.00020393,2]
[394197040,1763371847320,-166.66,0.00020499,2]
[394197041,1763371847332,-999.0,0.0002052,3]
[394197042,1763371847353,-23027.8224253,0.00020567,2]
[394197043,1763371847367,-22486.29071094,0.000207,2]
[394197044,1763371847377,-180.0349555,0.00020806,2]
[394197045,1763371847387,-1231.7135099,0.00020819,2]
[394197046,1763371847396,-254.9136556,0.00020832,2]
[394197047,1763371847406,-302.93030867,0.00020899,2]
[394197048,1763371847416,-320.82,0.000209,2]
[394197049,1763371847426,-596.1572743,0.00020919,2]
[394197050,1763371847438,-788.0,0.00020935,2]
[394197051,1763371847448,-500.0,0.00021,3]
[394197052,1763371847458,-360.85218773,0.00021,3]
[394197053,1763371847470,-500.0,0.00021,2]
[394197054,1763371847479,-13646.44312808,0.00021,2]
[394197055,1763371847489,-32105.02160803,0.00021,2]
[394197056,1763371847498,-768.18851,0.00021,2]
[394197057,1763371847510,-159.96,0.00021042,2]
[394197058,1763371847519,-5138.2017056,0.00021089,2]
[394197059,1763371847528,-166.66,0.00021154,2]
[394197060,1763371847538,-500.0,0.00021357,2]
[394197061,1763371847547,-2000.0,0.000215,2]
[394197062,1763371847557,-20380.24213093,0.000215,2]
[394197063,1763371847567,-5189.55879511,0.000215,2]
[394197064,1763371847576,-1000.0,0.00021525,2]
[394197065,1763371847586,-320.82,0.00021604,2]
[394197066,1763371847595,-2351.0,0.00021638,2]
[394197067,1763371847604,-479.1746172,0.00021687,2]
[394197068,1763371847614,-298.26089446,0.00021727,2]
[394197069,1763371847625,-166.66,0.00021809,2]
[394197070,1763371847635,-5101.15145,0.00021889,2]
[394197071,1763371847644,-5000.0,0.00021918,2]
[394197072,1763371847653,-500.0,0.00021998,2]
[394197073,1763371847663,-500.0,0.00021998,2]
[394197074,1763371847672,-500.0,0.00021998,2]
[394197075,1763371847681,-500.0,0.00021998,2]
[394197076,1763371847690,-11254.94723926,0.00021999,2]
[394197077,1763371847699,-1069.59751815,0.00021999,10]
[394197078,1763371847708,-58337.13349967,0.00022,4]
[394197079,1763371847719,-500.0,0.00022,5]
[394197080,1763371847728,-500.0,0.00022,5]
[394197081,1763371847737,-317.0,0.00022,2]
[394197082,1763371847747,-163.0,0.00022,2]
[394197083,1763371847756,-3029.66,0.00022,7]
[394197084,1763371847766,-4113.23966785,0.00022,2]
[394197085,1763371847775,-150.0,0.00022,2]
[394197086,1763371847785,-200.0,0.00022,2]
[394197087,1763371847796,-500.0,0.00022,2]
[394197088,1763371847806,-500.0,0.00022,2]
[394197089,1763371847816,-300.0,0.0002214,2]
[394197090,1763371847826,-317.0,0.00022192,7]
[394197091,1763371847836,-150.0,0.00022384,2]
[394197092,1763371847846,-500.0,0.00022411,2]
[394197093,1763371847856,-166.66,0.00022464,2]
[394197094,1763371847866,-35217.68467552,0.000225,2]
[394197095,1763371847876,-513.008002,0.000225,2]
[394197096,1763371847886,-513.008002,0.000225,2]
[394197097,1763371847898,-513.008002,0.000225,2]
[394197098,1763371847908,-513.008002,0.000225,2]
[394197099,1763371847918,-157.32448975,0.00022653,2]
[394197100,1763371847927,-220.99,0.00022698,2]
[394197101,1763371847938,-1138.2207399,0.00022749,2]
[394197102,1763371847947,-19234.34564927,0.000229,2]
[394197103,1763371847956,-162.8674096,0.00022978,2]
[394197104,1763371847968,-500.0,0.00023,5]
[394197105,1763371847978,-500.0,0.00023,3]
[394197106,1763371847987,-500.0,0.00023,2]
[394197107,1763371847996,-160.0,0.00023,5]
[394197108,1763371848006,-163.0,0.00023014,7]
[394197109,1763371848015,-317.0,0.00023014,7]
[394197110,1763371848024,-608.0,0.00023068,2]
[394197111,1763371848033,-1604.0,0.00023068,2]
[394197112,1763371848043,-705.0,0.00023068,2]
[394197113,1763371848053,-575.0,0.00023068,2]
[394197114,1763371848062,-1599.0,0.00023068,2]
[394197115,1763371848072,-821.0,0.00023068,2]
[394197116,1763371848081,-793.0,0.00023068,2]
[394197117,1763371848090,-1275.0,0.00023068,2]
[394197118,1763371848099,-1191.0,0.00023068,2]
[394197119,1763371848108,-907.0,0.00023068,2]
[394197120,1763371848117,-309.29654756,0.00023096,2]
[394197121,1763371848127,-166.66,0.00023119,2]
[394197122,1763371848139,-301.45476264,0.00023192,2]
[394197123,1763371848148,-51744.50570938,0.000232,2]
[394197124,1763371848157,-159.96,0.0002338,2]
[394197125,1763371848168,-300.0,0.0002351,2]
[394197126,1763371848178,-416.71,0.00023528,2]
[394197127,1763371848189,-416.71,0.00023528,2]
[394197128,1763371848199,-416.71,0.00023528,2]
[394197129,1763371848210,-416.71,0.00023528,2]
[394197130,1763371848220,-416.71,0.00023528,2]
[394197131,1763371848229,-833.42,0.00023625,2]
[394197132,1763371848239,-416.71,0.00023625,2]
[394197133,1763371848248,-3292.0,0.00023726,2]
[394197134,1763371848257,-239.43088094,0.00023916,2]
[394197135,1763371848267,-1000.0,0.00023917,2]
[394197136,1763371848277,-500.0,0.00024,5]
[394197137,1763371848286,-3600.0,0.00024,2]
[394197138,1763371848297,-16075.19562594,0.00024,2]
[394197139,1763371848307,-317.0,0.00024164,7]
[394197140,1763371848316,-3029.66,0.000242,7]
[394197141,1763371848327,-944.86,0.00024225,30]
[394197142,1763371848337,-416.71,0.0002435,2]
[394197143,1763371848347,-416.71,0.0002435,2]
[394197144,1763371848357,-416.71,0.0002435,2]
[394197145,1763371848366,-416.71,0.0002435,2]
[394197146,1763371848375,-416.71,0.0002435,2]
[394197147,1763371848385,-416.71,0.0002435,2]
[394197148,1763371848395,-416.71,0.0002435,2]
[394197149,1763371848406,-416.71,0.0002435,2]
[394197150,1763371848415,-416.71,0.0002435,2]
[394197151,1763371848429,-5888.0,0.0002436,2]
[394197152,1763371848439,-416.71,0.00024447,2]
[394197153,1763371848449,-416.71,0.00024447,2]
[394197154,1763371848459,-740.59,0.00024447,2]
[394197155,1763371848471,-320.74051982,0.00024465,2]
[394197156,1763371848480,-407.24,0.00024658,2]
[394197157,1763371848490,-382.0,0.00024658,2]
[394197158,1763371848502,-382.0,0.00024658,2]
[394197159,1763371848742,-382.0,0.00024658,2]
[394197160,1763371848751,-382.0,0.00024658,2]
[394197161,1763371848761,-153.0,0.00024658,2]
[394197162,1763371848770,-153.0,0.00024658,2]
[394197163,1763371848779,-153.0,0.00024658,2]
[394197164,1763371848789,-153.0,0.00024658,2]
[394197165,1763371848798,-153.0,0.00024658,2]
[394197166,1763371848807,-153.0,0.00024658,2]
[394197167,1763371848816,-153.0,0.00024658,2]
[394197168,1763371848826,-153.0,0.00024658,2]
[394197169,1763371848835,-153.0,0.00024658,2]
[394197170,1763371848844,-296.0,0.00024658,2]
[394197171,1763371848853,-296.0,0.00024658,2]
[394197172,1763371848862,-296.0,0.00024658,2]
[394197173,1763371848872,-296.0,0.00024658,2]
[394197174,1763371848881,-296.0,0.00024658,2]
[394197175,1763371848891,-153.0,0.00024658,2]
[394197176,1763371848901,-153.0,0.00024658,2]
[394197177,1763371848911,-153.0,0.00024658,2]
[394197178,1763371848920,-153.0,0.00024658,2]
[394197179,1763371848929,-153.0,0.00024658,2]
[394197180,1763371848939,-153.0,0.00024658,2]
[394197181,1763371848948,-153.0,0.00024658,2]
[394197182,1763371848957,-153.0,0.00024658,2]
[394197183,1763371848966,-373.0,0.00024658,2]
[394197184,1763371848975,-373.0,0.00024658,2]
[394197185,1763371848983,-373.0,0.00024658,2]
[394197186,1763371848992,-373.0,0.00024658,2]
[394197187,1763371849003,-373.0,0.00024658,2]
[394197188,1763371849014,-153.0,0.00024658,2]
[394197189,1763371849024,-153.0,0.00024658,2]
[394197190,1763371849034,-153.0,0.00024658,2]
[394197191,1763371849044,-153.0,0.00024658,2]
[394197192,1763371849055,-153.0,0.00024658,2]
[394197193,1763371849065,-153.0,0.00024658,2]
[394197194,1763371849074,-153.0,0.00024658,2]
[394197195,1763371849083,-153.0,0.00024658,2]
[394197196,1763371849092,-153.0,0.00024658,2]
[394197197,1763371849101,-1000.0,0.00024658,2]
[394197198,1763371849109,-294.0,0.00024658,2]
[394197199,1763371849119,-294.0,0.00024658,2]
[394197200,1763371849128,-294.0,0.00024658,2]
[394197201,1763371849137,-294.0,0.00024658,2]
[394197202,1763371849146,-294.0,0.00024658,2]
[394197203,1763371849155,-153.0,0.00024658,2]
[394197204,1763371849164,-153.0,0.00024658,2]
[394197205,1763371849173,-153.0,0.00024658,2]
[394197206,1763371849182,-153.0,0.00024658,2]
[394197207,1763371849190,-153.0,0.00024658,2]
[394197208,1763371849199,-153.0,0.00024658,2]
[394197209,1763371849207,-153.0,0.00024658,2]
[394197210,1763371849216,-153.0,0.00024658,2]
[394197211,1763371849225,-153.0,0.00024658,2]
[394197212,1763371849234,-153.0,0.00024658,2]
[394197213,1763371849244,-247.262232,0.00024658,7]
[394197214,1763371849253,-364.451564,0.00024658,7]
[394197215,1763371849262,-364.451564,0.00024658,7]
[394197216,1763371849271,-364.451564,0.00024658,7]
[394197217,1763371849281,-364.451564,0.00024658,7]
[394197218,1763371849289,-151.0,0.00024658,7]
[394197219,1763371849298,-151.0,0.00024658,7]
[394197220,1763371849307,-335.956017,0.00024658,7]
[394197221,1763371849316,-151.0,0.00024658,7]
[394197222,1763371849325,-335.956017,0.00024658,7]
[394197223,1763371849334,-151.0,0.00024658,7]
[394197224,1763371849343,-335.956017,0.00024658,7]
[394197225,1763371849353,-151.0,0.00024658,7]
[394197226,1763371849362,-153.71651,0.00024658,7]
[394197227,1763371849371,-335.956017,0.00024658,7]
[394197228,1763371849380,-151.0,0.00024658,7]
[394197229,1763371849390,-151.0,0.00024658,7]
[394197230,1763371849399,-151.0,0.00024658,7]
[394197231,1763371849409,-151.0,0.00024658,7]
[394197232,1763371849418,-152.685095,0.00024658,7]
[394197233,1763371849430,-189.813334,0.00024658,7]
[394197234,1763371849440,-189.813334,0.00024658,7]
[394197235,1763371849449,-189.813334,0.00024658,7]
[394197236,1763371849459,-180.222763,0.00024658,7]
[394197237,1763371849470,-189.813334,0.00024658,7]
[394197238,1763371849479,-180.222763,0.00024658,7]
[394197239,1763371849488,-180.222763,0.00024658,7]
[394197240,1763371849498,-180.222763,0.00024658,7]
[394197241,1763371849509,-151.0,0.00024658,7]
[394197242,1763371849518,-173.961542,0.00024658,7]
[394197243,1763371849527,-173.961542,0.00024658,7]
[394197244,1763371849535,-173.961542,0.00024658,7]
[394197245,1763371849545,-173.961542,0.00024658,7]
[394197246,1763371849554,-355.123468,0.00024658,7]
[394197247,1763371849564,-355.123468,0.00024658,7]
[394197248,1763371849573,-355.123468,0.00024658,7]
[394197249,1763371849582,-151.0,0.00024658,7]
[394197250,1763371849592,-151.0,0.00024658,7]
[394197251,1763371849602,-644.285248,0.00024658,7]
[394197252,1763371849611,-151.0,0.00024658,7]
[394197253,1763371849620,-355.123468,0.00024658,7]
[394197254,1763371849630,-644.285248,0.00024658,7]
[394197255,1763371849639,-238.181119,0.00024658,7]
[394197256,1763371849649,-151.0,0.00024658,7]
[394197257,1763371849659,-644.285248,0.00024658,7]
[394197258,1763371849669,-151.0,0.00024658,7]
[394197259,1763371849679,-644.285248,0.00024658,7]
[394197260,1763371849690,-151.0,0.00024658,7]
[394197261,1763371849699,-151.0,0.00024658,7]
[394197262,1763371849710,-151.0,0.00024658,7]
[394197263,1763371849720,-520.938436,0.00024658,7]
[394197264,1763371849729,-151.0,0.00024658,7]
[394197265,1763371849738,-176.014124,0.00024658,7]
[394197266,1763371849747,-520.938436,0.00024658,7]
[394197267,1763371849756,-151.0,0.00024658,7]
[394197268,1763371849765,-520.938436,0.00024658,7]
[394197269,1763371849774,-151.0,0.00024658,7]
[394197270,1763371849783,-151.0,0.00024658,7]
[394197271,1763371849792,-154.181112,0.00024658,7]
[394197272,1763371849801,-520.938436,0.00024658,7]
[394197273,1763371849812,-151.0,0.00024658,7]
[394197274,1763371849821,-327.819716,0.00024658,7]
[394197275,1763371849831,-327.819716,0.00024658,7]
[394197276,1763371849840,-151.0,0.00024658,7]
[394197277,1763371849849,-151.0,0.00024658,7]
[394197278,1763371849858,-151.0,0.00024658,7]
[394197279,1763371849868,-151.0,0.00024658,7]
[394197280,1763371849878,-151.0,0.00024658,7]
[394197281,1763371849888,-151.0,0.00024658,7]
[394197282,1763371849898,-151.0,0.00024658,7]
[394197283,1763371849908,-208.765007,0.00024658,7]
[394197284,1763371849917,-151.0,0.00024658,7]
[394197285,1763371849926,-151.0,0.00024658,7]
[394197286,1763371849935,-151.0,0.00024658,7]
[394197287,1763371849944,-151.0,0.00024658,7]
[394197288,1763371849954,-151.0,0.00024658,7]
[394197289,1763371849963,-151.0,0.00024658,7]
[394197290,1763371849975,-151.0,0.00024658,7]
[394197291,1763371849983,-151.0,0.00024658,7]
[394197292,1763371849992,-151.0,0.00024658,7]
[394197293,1763371850002,-151.0,0.00024658,7]
[394197294,1763371850011,-151.0,0.00024658,7]
[394197295,1763371850021,-151.0,0.00024658,7]
[394197296,1763371850030,-151.849867,0.00024658,7]
[394197297,1763371850038,-151.0,0.00024658,7]
[394197298,1763371850048,-151.0,0.00024658,7]
[394197299,1763371850058,-151.0,0.00024658,7]
[394197300,1763371850068,-151.0,0.00024658,7]
[394197301,1763371850077,-151.0,0.00024658,7]
[394197302,1763371850087,-151.0,0.00024658,7]
[394197303,1763371850097,-151.0,0.00024658,7]
[394197304,1763371850106,-151.0,0.00024658,7]
[394197305,1763371850115,-151.0,0.00024658,7]
[394197306,1763371850124,-151.0,0.00024658,7]
[394197307,1763371850133,-151.0,0.00024658,7]
[394197308,1763371850143,-151.0,0.00024658,7]
[394197309,1763371850151,-151.0,0.00024658,7]
[394197310,1763371850160,-376.962864,0.00024658,7]
[394197311,1763371850170,-376.962864,0.00024658,7]
[394197312,1763371850179,-376.962864,0.00024658,7]
[394197313,1763371850188,-376.962864,0.00024658,7]
[394197314,1763371850198,-151.0,0.00024658,7]
[394197315,1763371850207,-538.0,0.00024667,2]
[394197316,1763371850216,-538.0,0.00024675,2]
[394197317,1763371850225,-479.1746172,0.000248,7]
[394197318,1763371850235,-374.58708372,0.000248,2]
[394197319,1763371850245,-151.0,0.000248,7]
[394197320,1763371850254,-151.0,0.000248,7]
[394197321,1763371850263,-151.0,0.000248,7]
[394197322,1763371850272,-151.0,0.000248,7]
[394197323,1763371850281,-151.0,0.000248,7]
[394197324,1763371850291,-256.849912,0.000248,7]
[394197325,1763371850300,-151.0,0.000248,7]
[394197326,1763371850309,-151.0,0.000248,7]
[394197327,1763371850318,-151.0,0.000248,7]
[394197328,1763371850327,-151.0,0.000248,7]
[394197329,1763371850337,-151.0,0.000248,7]
[394197330,1763371850346,-152.998851,0.000248,7]
[394197331,1763371850355,-256.849912,0.000248,7]
[394197332,1763371850364,-151.0,0.000248,7]
[394197333,1763371850374,-161.999726,0.000248,7]
[394197334,1763371850383,-151.0,0.000248,7]
[394197335,1763371850392,-256.849912,0.000248,7]
[394197336,1763371850401,-151.0,0.000248,7]
[394197337,1763371850410,-151.0,0.000248,7]
[394197338,1763371850422,-256.849912,0.000248,7]
[394197339,1763371850433,-151.0,0.000248,7]
[394197340,1763371850444,-266.442509,0.000248,7]
[394197341,1763371850454,-270.62269,0.000248,7]
[394197342,1763371850463,-203.657462,0.000248,7]
[394197343,1763371850473,-203.657462,0.000248,7]
[394197344,1763371850482,-203.657462,0.000248,7]
[394197345,1763371850491,-165.883715,0.000248,7]
[394197346,1763371850503,-203.657462,0.000248,7]
[394197347,1763371850512,-165.883715,0.000248,7]
[394197348,1763371850521,-151.0,0.000248,7]
[394197349,1763371850531,-165.883715,0.000248,7]
[394197350,1763371850540,-151.0,0.000248,7]
[394197351,1763371850550,-165.883715,0.000248,7]
[394197352,1763371850559,-619828.340125,0.000248,3]
[394197353,1763371850568,-151.0,0.000248,7]
[394197354,1763371850577,-257.761796,0.000248,7]
[394197355,1763371850587,-257.761796,0.000248,7]
[394197356,1763371850596,-257.761796,0.000248,7]
[394197357,1763371850605,-257.761796,0.000248,7]
[394197358,1763371850615,-364.451564,0.000248,7]
[394197359,1763371850624,-364.451564,0.000248,7]
[394197360,1763371850633,-364.451564,0.000248,7]
[394197361,1763371850643,-364.451564,0.000248,7]
[394197362,1763371850652,-151.0,0.000248,7]
[394197363,1763371850661,-513.008002,0.000248,7]
[394197364,1763371850671,-335.956017,0.000248,7]
[394197365,1763371850681,-513.008002,0.000248,7]
[394197366,1763371850690,-151.0,0.000248,7]
[394197367,1763371850699,-335.956017,0.000248,7]
[394197368,1763371850709,-513.008002,0.000248,7]
[394197369,1763371850719,-151.0,0.000248,7]
[394197370,1763371850728,-513.008002,0.000248,7]
[394197371,1763371850737,-335.956017,0.000248,7]
[394197372,1763371850748,-151.0,0.000248,7]
[394197373,1763371850757,-335.956017,0.000248,7]
[394197374,1763371850767,-258.654489,0.000248,7]
[394197375,1763371850776,-151.0,0.000248,7]
[394197376,1763371850786,-151.0,0.000248,7]
[394197377,1763371850796,-151.0,0.000248,7]
[394197378,1763371850806,-189.813334,0.000248,7]
[394197379,1763371850816,-189.813334,0.000248,7]
[394197380,1763371850826,-189.813334,0.000248,7]
[394197381,1763371850835,-180.222763,0.000248,7]
[394197382,1763371850846,-189.813334,0.000248,7]
[394197383,1763371850855,-180.222763,0.000248,7]
[394197384,1763371850864,-180.222763,0.000248,7]
[394197385,1763371850874,-180.222763,0.000248,7]
[394197386,1763371850883,-151.0,0.000248,7]
[394197387,1763371850892,-173.961542,0.000248,7]
[394197388,1763371850902,-173.961542,0.000248,7]
[394197389,1763371850911,-173.961542,0.000248,7]
[394197390,1763371850920,-173.961542,0.000248,7]
[394197391,1763371850929,-355.123468,0.000248,7]
[394197392,1763371850937,-355.123468,0.000248,7]
[394197393,1763371850947,-355.123468,0.000248,7]
[394197394,1763371850956,-166.131791,0.000248,7]
[394197395,1763371850965,-151.0,0.000248,7]
[394197396,1763371850974,-644.285248,0.000248,7]
[394197397,1763371850983,-151.0,0.000248,7]
[394197398,1763371850992,-355.123468,0.000248,7]
[394197399,1763371851001,-644.285248,0.000248,7]
[394197400,1763371851010,-151.0,0.000248,7]
[394197401,1763371851019,-644.285248,0.000248,7]
[394197402,1763371851028,-151.0,0.000248,7]
[394197403,1763371851037,-644.285248,0.000248,7]
[394197404,1763371851046,-151.0,0.000248,7]
[394197405,1763371851054,-151.0,0.000248,7]
[394197406,1763371851063,-520.938436,0.000248,7]
[394197407,1763371851072,-151.0,0.000248,7]
[394197408,1763371851081,-520.938436,0.000248,7]
[394197409,1763371851090,-151.0,0.000248,7]
[394197410,1763371851098,-520.938436,0.000248,7]
[394197411,1763371851107,-151.0,0.000248,7]
[394197412,1763371851116,-151.0,0.000248,7]
[394197413,1763371851125,-520.938436,0.000248,7]
[394197414,1763371851134,-155.371086,0.000248,7]
[394197415,1763371851143,-327.819716,0.000248,7]
[394197416,1763371851152,-327.819716,0.000248,7]
[394197417,1763371851161,-538.0,0.00024836,2]
[394197418,1763371851171,-500.0,0.00024845,2]
[394197419,1763371851181,-1069.59751815,0.00024889,10]
[394197420,1763371851190,-1069.59751815,0.00024889,10]
[394197421,1763371851199,-500.0,0.00024889,2]
[394197422,1763371851208,-511.78757789,0.00024889,2]
[394197423,1763371851217,-500.0,0.00024889,2]
[394197424,1763371851226,-500.0,0.00024889,2]
[394197425,1763371851235,-500.0,0.00024899,2]
[394197426,1763371851244,-538.0,0.00025015,7]
[394197427,1763371851253,-538.0,0.00025065,2]
[394197428,1763371851261,-538.0,0.00025134,2]
[394197429,1763371851270,-150.0,0.00025135,2]
[394197430,1763371851279,-2000.0,0.000252,2]